Cogmind - Beta 16.1 @@@ ROGUE MODE // 2026.03.30 @ 21:21:40 // AFD2020/Player2 Player: Michael Result: Destroyed by D-53 Grenadier with Mini Grenade Launcher Performance ------------- Evolutions (0) 0 Regions Visited (2) 400 Robots Destroyed (13) 65 Value Destroyed (228) 228 Prototype IDs (0) 0 Alien Tech Used (0) 0 Bonus (191) 191 TOTAL SCORE: 884 Bonus ------- Follower Combat Kills 191 Cogmind --------- Core Integrity 0/250 Matter 286/300 Energy 63/100 System Corruption 0% Temperature Cool (55) Movement Core (150) Ox2 Location -10/Mines Parts ------- > --- POWER (1) -------- (None) > --- PROPULSION (2) --- (None) > --- UTILITY (2) ------ Small Storage Unit Signal Interpreter > --- WEAPON (2) ------- Beam Cannon Light Assault Rifle > --- INVENTORY (8) ---- Light Treads Aluminum Leg Wheel Core Shielding Beam Cannon Grenade Launcher Peak State ------------ > --- POWER ------------ Ion Engine > --- PROPULSION ------- Aluminum Leg Aluminum Leg > --- UTILITY ---------- Small Storage Unit Signal Interpreter > --- WEAPON ----------- Beam Cannon Light Assault Rifle > --- INVENTORY -------- Light Treads Aluminum Leg Aluminum Leg Wheel Wheel Beam Cannon Grenade Launcher [Rating: 7] Favorites ----------- Power Ion Engine Engine Ion Engine Propulsion Aluminum Leg Leg Aluminum Leg Utility Small Storage Unit Storage Small Storage Unit Processor Signal Interpreter Weapon Light Assault Rifle Energy Cannon Beam Cannon Ballistic Gun Light Assault Rifle Launcher Grenade Launcher Build | -11 -10 -10 ------- Run | Yrd Mat Min Slots Evolved . | . . . Power . | . . . Propulsion . | . . . Utility . | . . . Weapon . | . . . Parts Attached 14 | 4 9 1 Power 1 | . 1 . Engine 1 | . 1 . Core . | . . . Reactor . | . . . Propulsion 5 | 2 3 . Treads . | . . . Leg 5 | 2 3 . Wheel . | . . . Hover . | . . . Flight . | . . . Utility 2 | 1 1 . Device . | . . . Storage 1 | 1 . . Processor 1 | . 1 . Hackware . | . . . Protection . | . . . Artifact . | . . . Weapon 6 | 1 4 1 Energy Gun . | . . . Energy Cannon 2 | . 2 . Ballistic Gun 3 | 1 1 1 Ballistic Cannon . | . . . Launcher 1 | . 1 . Special Weapon . | . . . Impact Weapon . | . . . Slashing Weapon . | . . . Piercing Weapon . | . . . Special Melee Weapon . | . . . Unidentified Prototypes . | . . . Parts Lost 5 | . . 5 Power 1 | . . 1 Propulsion 2 | . . 2 Utility . | . . . Weapon 2 | . . 2 Highest Loss Streak 5 | . . 5 To Critical Strikes . | . . . Average Backups 5 | 3 5 7 Power . | . . . Propulsion 3 | 2 3 3 Utility . | . . 1 Weapon 1 | 1 1 3 Tool/Special . | . . . Unused Backups 10 | . 4 6 Power . | . . . Propulsion 6 | . 2 4 Utility 1 | . . 1 Weapon 3 | . 2 1 Tool/Special . | . . . Average Slot Usage (%) 85 | . 81 97 Engine 3 | . 1 12 Leg 27 | . 28 27 Storage 14 | . 14 14 Processor 11 | . 10 14 Energy Cannon 8 | . 10 3 Ballistic Gun 16 | . 14 23 Launcher 2 | . 3 . Peak Build Rating 7 | 4 7 7 Average Rating 5 | 2 5 6 On Entrance 3 | . 4 7 Avg Prop Armor Cover (%) . | . . . Naked Turns . | . . . Heaviest Build 14 | 6 14 14 Greatest Support 20 | 20 20 20 Greatest Overweight (x) . | . . . Average Overweight (x) . | . . . Largest Inventory Capacity 8 | 8 8 8 Average Capacity 7 | 6 8 8 Most Carried 8 | 5 8 8 Average Carried 5 | 3 5 7 Final Capacity 8 | 8 8 8 Final Carried 8 | 5 8 6 Class Distribution -------------------- 100% | Mutant Dominant Class ---------------- Mutant | -10/Materials Mutant | -10/Mines Resources | -11 -10 -10 ----------- Run | Yrd Mat Min Matter Collected 466 | 240 108 118 Remotely . | . . . Salvage Created 337 | . 278 59 Parts 22 | . 16 6 Haulers Intercepted . | . . . Recyclers Shooed . | . . . Parts Field Recycled . | . . . Retrieved Matter . | . . . Parts Self-Destructed . | . . . Prevented . | . . . Parts Restored . | . . . Kills | -11 -10 -10 ------- Run | Yrd Mat Min Combat Hostiles Destroyed 11 | . 8 3 Guns 2 | . 2 . Cannons 2 | . 1 1 AOE 7 | . 5 2 Classes Destroyed 3 | . 3 . Recycler 2 | . 2 . Swarmer 7 | . 5 2 Grunt 4 | . 3 1 Best Kill Streak 3 | . 3 3 Combat Bots Only 3 | . 3 3 Max Kills in Single Turn 3 | . 3 2 Gunslinging . | . . . Exploded 3 | . 3 2 Melee . | . . . Uniques/NPCs Destroyed . | . . . Combat | -11 -10 -10 -------- Run | Yrd Mat Min Hostile Shots Fired 58 | . 28 30 Missed 15 | . 9 6 Hits 43 | . 19 24 Projectile 43 | . 19 24 AOE 13 | . . 13 Damage Taken 876 | . 237 639 Core 230 | . 26 204 Absorbed by Shields . | . . . Core Remaining (%) 100 | 100 . . Volleys Fired 35 | . 24 11 Largest 2 | . 2 2 Hottest 80 | . 80 80 Shots Fired 63 | . 42 21 Gun 32 | . 20 12 Cannon 26 | . 18 8 Launcher 5 | . 4 1 Special . | . . . Kinetic 32 | . 20 12 Thermal 26 | . 18 8 Explosive 5 | . 4 1 Electromagnetic . | . . . Robot Hit Streak 4 | . 4 3 Robot Miss Streak 4 | . 4 2 Penetration Max . | . . . Secondary Targets . | . . . Shots Hit Robots 32 | . 22 10 Core Hits 19 | . 14 5 Critical Kills . | . . . Critical Parts Destroyed . | . . . Critical Strikes . | . . . Melee Attacks . | . . . Impact . | . . . Slashing . | . . . Piercing . | . . . Sneak Attacks . | . . . Combat Hostiles . | . . . Follow-up Attacks . | . . . Damage Inflicted 804 | . 601 203 Guns 130 | . 80 50 Cannons 243 | . 191 52 Explosions 431 | . 330 101 Melee . | . . . Ramming . | . . . Kinetic 130 | . 80 50 Thermal 243 | . 191 52 Explosive 431 | . 330 101 Electromagnetic . | . . . Impact . | . . . Slashing . | . . . Piercing . | . . . Highest Corruption . | . . . Average Corruption . | . . . Corruption Purged . | . . . Corruption Blocked . | . . . Overload Shots . | . . . Overflow Damage 14 | . 14 . Projectiles 11 | . 11 . Explosions 3 | . 3 . Melee . | . . . Knockbacks . | . . . Impact . | . . . Kinetic . | . . . Secondary . | . . . Self-Inflicted Damage 40 | . 40 . Shots 1 | . 1 . Rammed . | . . . Targets Rammed . | . . . Kicked . | . . . Crushed . | . . . Highest Temperature 92 | . 80 92 Average Temperature 34 | . 33 36 Received Heat Transfer 87 | . 75 12 Siege Activations . | . . . Martial Activations . | . . . Shielding Activations . | . . . Robots Disrupted . | . . . Combat Hostiles . | . . . Robots Corrupted . | . . . Combat Hostiles . | . . . Parts Fried . | . . . Impact Corruptions . | . . . Robots Melted . | . . . Combat Hostiles . | . . . Parts Melted . | . . . Heat Transferred 518 | . 407 111 Parts Sabotaged . | . . . Parts Stolen . | . . . Parts Stripped . | . . . Power Chain Reactions . | . . . Alert | -11 -10 -10 ------- Run | Yrd Mat Min Maximum Alert Level 1 | . . 1 Low Security (%) 99 | 100 100 97 Level 1 . | . . 2 Level 2 . | . . . Level 3 . | . . . Level 4 . | . . . Level 5 . | . . . High Security . | . . . Max Security . | . . . Peak Influence 202 | . 173 202 Initial 61 | . . 61 Average 91 | . 82 144 Influence Increases 647 | . 459 188 Destroy 0b10 Robot/C 360 | . 240 120 Destroy 0b10 Robot/NC 35 | . 35 . Destroy Leader 94 | . 64 30 Allied During Kill 108 | . 72 36 Successful Hack 10 | . 10 . Disable Machine 15 | . 15 . Destroy Structure 25 | . 23 2 Influence Decreases 608 | . 302 306 Entered New Map 96 | . . 96 Time Decay 402 | . 302 100 Lost Part 50 | . . 50 Lost Ally 60 | . . 60 Squads Dispatched 4 | . 4 . Investigation 1 | . 1 . Extermination . | . . . Reinforcement 3 | . 3 . Assault . | . . . Garrison . | . . . Intercept . | . . . Searches Triggered . | . . . Construction Impeded . | . . . Haulers Reinforced . | . . . Active Scanning Responses . | . . . Cargo Convoy Interrupts . | . . . Stealth | -11 -10 -10 --------- Run | Yrd Mat Min Distress Signals 2 | . 2 . Communications Jammed . | . . . Distress Signals . | . . . Times Spotted 27 | . 20 7 Peak Tracking Total 4 | . 4 3 Tactical Retreats . | . . . Traps | -11 -10 -10 ------- Run | Yrd Mat Min Traps Triggered . | . . . Indirectly . | . . . Trap Hack Attempts . | . . . Triggered . | . . . Disarmed . | . . . Reprogrammed . | . . . Reused . | . . . Traps Extracted . | . . . Installed . | . . . Triggered . | . . . Machines | -11 -10 -10 ---------- Run | Yrd Mat Min Machines Disabled 1 | . 1 . Max in Single Turn 1 | . 1 . Machines Repaired . | . . . Machines Dismantled . | . . . Machines Sabotaged . | . . . Overloaded Fab Kills . | . . . Hacking | -11 -10 -10 --------- Run | Yrd Mat Min Machines Accessed 7 | . 7 . Terminals 4 | . 4 . Fabricators . | . . . Repair Stations 1 | . 1 . Recycling Units 2 | . 2 . Scanalyzers . | . . . Garrison Access . | . . . Total Hacks 15 | . 15 . Successful 7 | . 7 . Failed 8 | . 8 . Catastrophic 1 | . 1 . Database Lockouts . | . . . Manual . | . . . Terminals 9 | . 9 . Fabricators . | . . . Repair Stations 4 | . 4 . Recycling Units 2 | . 2 . Scanalyzers . | . . . Garrison Access . | . . . Terminal Hacks 4 | . 4 . Emergency Access Points 1 | . 1 . Locate Traps 2 | . 2 . Zone Layout 1 | . 1 . Fabricator Hacks . | . . . Repair Station Hacks 1 | . 1 . Scan Component 1 | . 1 . Recycling Unit Hacks 2 | . 2 . Retrieve Components 2 | . 2 . Scanalyzer . | . . . Garrison Access Hacks . | . . . Unauthorized Hacks . | . . . Terminals . | . . . Fabricators . | . . . Repair Stations . | . . . Recycling Units . | . . . Scanalyzers . | . . . Garrison Access . | . . . Data Cores Recovered 1 | . 1 . Used . | . . . Hacking Detections 6 | . 6 . Full Trace Events . | . . . Feedback Events . | . . . Feedback Blocked . | . . . Robot Schematics Acquired . | . . . Robots Built . | . . . Authchips . | . . . Time . | . . . Total Robot Build Rating . | . . . Part Schematics Acquired . | . . . Parts Built . | . . . Authchips . | . . . Time . | . . . Total Part Build Rating . | . . . Part Studies Acquired . | . . . Parts Repaired . | . . . Time . | . . . Parts Recycled . | . . . Recycled Matter . | . . . Retrieved Matter . | . . . Retrieved Components 13 | . 13 . Parts Scanalyzed . | . . . Part Schematics Acquired . | . . . Parts Damaged . | . . . Bothacking | -11 -10 -10 ------------ Run | Yrd Mat Min Used RIF Installer . | . . . Robots Hacked . | . . . Non-combat . | . . . Combat . | . . . Robot Hacks Applied . | . . . Relay Couplers Released . | . . . Fabnet Peak Effective % . | . . . Robots Rewired . | . . . Allies Hacked . | . . . Hacks Repelled . | . . . Allies | -11 -10 -10 -------- Run | Yrd Mat Min Total Allies 4 | . 1 3 Largest Group 4 | . 1 4 Highest-Rated Group 98 | . 58 98 Highest-Rated Ally 58 | . 58 58 Total Orders . | . . . Ally Attacks 39 | . 23 16 Total Damage 713 | . 447 266 Kills 12 | . 9 3 Allies Corrupted . | . . . Allies Melted . | . . . Intel | -11 -10 -10 ------- Run | Yrd Mat Min Active Infowar (turns) . | . . . Robot Analysis Total . | . . . Derelict Logs Recovered . | . . . Drone Launches . | . . . Drone Recoveries . | . . . Exploration | -11 -10 -10 ------------- Run | Yrd Mat Min Turns Passed 1019 | 43 764 212 Spaces Moved 712 | 34 532 146 Core 12 | 12 . . Treads . | . . . Legs 700 | 22 532 146 Wheels . | . . . Hover . | . . . Flight . | . . . Fastest Speed 50 | 50 120 120 Average Speed 118 | 95 120 120 Slowest Speed 120 | 120 120 120 Overloaded Moves . | . . . Propulsion Burnouts . | . . . Robots Hopped . | . . . Potential Cave-ins . | . . . Cave-ins Triggered . | . . . Exploration Rate (%) 45 | 3 89 45 Regions Visited 2 Branch Regions 1 Pre-discovered Areas . | . . . Known Exits Taken 1 | . 1 . Unknown Exits Taken 1 | 1 . . Scrap Searched 2 | . . 2 Spaces Dug 3 | . 3 . Terrain Destroyed 20 | . 18 2 Melee . | . . . Projectile . | . . . AOE 20 | . 18 2 Terrain Rammed . | . . . Walls Destroyed . | . . . Machines Disabled . | . . . Actions | -11 -10 -10 --------- Run | Yrd Mat Min Total 829 | 42 621 166 Wait 39 | . 39 . Move 710 | 33 531 146 Hop . | . . . Pick Up 13 | 5 7 1 Fast Attach 7 | 4 3 . Attach 3 | . 1 2 Detach 1 | . 1 . Swap 11 | . 7 4 Drop 10 | . 8 2 Fire 35 | . 24 11 Melee . | . . . Ram . | . . . Kick . | . . . Crush . | . . . Escape Stasis . | . . . Rewire . | . . . Trap . | . . . Miscellaneous . | . . . Route ------- -11/Scrapyard -10/Materials (discovered 5 exits: *Mat x3 / *Min x2) -10/Mines (discovered 1 exit: *Mat) History --------- Turn | Location | Event 9 | -11/Scrapyard | Discovered new exit (range 15) 44 | -11/Scrapyard | Entered Materials 121 | -10/Materials | Discovered new exit (range 7) 295 | -10/Materials | Discovered new exit (range 7) 306 | -10/Materials | Build established: Mutant 464 | -10/Materials | Discovered new exit (range 3) 465 | -10/Materials | Identified exit to Materials 584 | -10/Materials | Discovered exit to Materials (range 15) 711 | -10/Materials | Discovered new exit (range 9) 772 | -10/Materials | Identified exit to Mines 808 | -10/Materials | Entered Mines 908 | -10/Mines | Discovered exit to Materials (range 15) 984 | -10/Mines | Assisted by bots powering up and referring to "LRC-V3" 989 | -10/Mines | Assembled infested the area 994 | -10/Mines | Assisted by a Guerilla fighting off Assembled 1011 | -10/Mines | Core integrity fell below 50% 1016 | -10/Mines | Core integrity fell below 20% 1020 | -10/Mines | Destroyed by D-53 Grenadier with Mini Grenade Launcher Last Messages --------------- 01000_ Found 35 Matter. 01001_ Acquired 13 matter. 01001_ C-45 Heavy ARC bursts open, deploying its payload. 01001_ D-53 Grenadier unfolds itself. 01004_ Ion Engine destroyed. 01004_ Mercenary 1a destroyed. 01005_ The unstable cave ceiling collapses. 01005_ D-53 Grenadier suffers critical hit (Burn). 01005_ Trooper 1b destroyed. 01005_ Lgt. Assault Rifle destroyed. 01006_ Trooper 1a destroyed. 01009_ D-53 Grenadier suffers critical hit (Burn). 01010_ Aluminum Leg destroyed. 01012_ The unstable cave ceiling collapses. 01015_ D-53 Grenadier destroyed. 01020_ The unstable cave ceiling collapses. 01020_ Aluminum Leg destroyed. Map ----- +----------------------------------------------------+ | | | | | | | ??????????????????????????????????????????????? | | ??????????????????????????????????????????????? | | ??????????????????????????????????????????????? | | ??????????????????????????????????????????????? | | ??????????????????????????????????????????????? | | ?????????????????? ???????????????????????????? | | ?????????????????? ??????????????????????####?? | | ?????????????????? ?????????????????????## ##? | | ?????????????????? ????????????????????## ## | | ?????????????????? ????????????????????# | | ?????????????????? ????????????????????# | | ?????????????????? ????????????????????## ### | | ?????????????????# #????????????????????## #? | | ???????????##????# #????????????????????## #? | | ???????????? ??##"#????????????????????# #? | | ????????????? ## %###?????????????????## ##? | | ?????????????? # ######?#####?????# ##?# | | ??????????????## ## ### #????## #?# | | ??????????????# ## #????# #?# | | ???????????????# ## ! ####?# #??? | | ???????????????# # # #### ##??? | | ???????????????# d @= ## ### ##### | | ???????????????# @ | | ???????????????# #### ###### | | ???????????????# # #?? #????? | | ???????????????## # ### ## #?? ????? | | ????????????????#### ##?# #### #? ???? | | ???????????????????#######??# #??# #?# #??? | | ????????????????????????????# ?? #?# #??? | | ????????????????????????????###??# #?# ? ??? | | ?????????????????????????????????# #?# ? ?? | | ?????????????????????????????????# #?## ? ?? | | ?????????????????????????????????# #???# ? ? | | ????????????????????????????????? #???? ?? ? | | ????????????????????????????????? #???? #?? | | ?????????????????????????????????####???? ???? | | ????????????????????????????????????????? ????? | | ??????????????????????????????????????????????? | | ??????????????????????????????????????????????? | | ??????????????????????????????????????????????? | | ??????????????????????????????????????????????? | | ??????????????????????????????????????????????? | | ??????????????????????????????????????????????? | | ??????????????????????????????????????????????? | | ??????????????????????????????????????????????? | | ??????????????????????????????????????????????? | | ??????????????????????????????????????????????? | +----------------------------------------------------+ Best States ------------- Heat Dissipation 25 Energy Generation 10 Energy Capacity 250 Matter Stores 300 Matter Capacity 300 Sight Range 16 Terrain Scan Density 10 Evasion (%) 55 Item Schematics ----------------- None Robot Schematics ------------------ None Fabricated ------------ Nothing Repaired ---------- Nothing Studied --------- None Alien Tech Used ----------------- None Achievements -------------- None Challenges ------------ None Player 2 | -11 -10 -10 ---------- Run | Yrd Mat Min Slots Evolved . | . . . Power . | . . . Propulsion . | . . . Utility . | . . . Weapon . | . . . Parts Attached 14 | . 13 1 Parts Lost . | . . . Damage Taken 272 | . 241 31 Core 24 | . 24 . Player 2/Cogmind (%) 9 | . 48 . Absorbed by Shields . | . . . Damage Inflicted 657 | . 447 210 Player 2/Cogmind (%) 44 | . 42 50 Combat Hostiles Destroyed 7 | . 4 3 Player 2/Cogmind (%) 38 | . 33 50 Game ------ Seed BombardmentHypercooledMaul Manual? 0 Play Time 00:12:50 Cumulative 0.9 hours Start 2026.03.30 @ 21:09:58 End 2026.03.30 @ 21:21:40 Sessions 1 Manual Loads 0 Difficulty Rogue Special Mode AFD2020/Player2 Game No. 6 Rogue 6 Adventurer 0 Explorer 0 Win Type - Total 0 Types 0/0/0/0/0/0/0/0/0/0 Lore% 10 Gallery% 6 Achievement% 12 Wizard Run 0 Options --------- Layout 2 ASCII 0 Keyboard 1 Movement Vi Keybinds 0 Fullscreen 1 Font 24/Terminus Map View 25x22 Zoom Use 99% Tactical HUD 1 Map Filters NONE Filters SHIFT_HUE(270) Steam 0 RUN: 51a6e260-1d60-46b1-ac95-85b6684c30bb